fUSD/lending_fUSD_20260323
["ID","MTS","AMOUNT","RATE_DAILY","PERIOD"]
[408814360,1774288255698,-523.04,0.00046489,120]
[408814361,1774288255707,-523.04,0.00046489,120]
[408814362,1774288255716,-523.04,0.00046489,120]
[408814363,1774288255725,-523.04,0.00046489,120]
[408814364,1774288255734,-523.04,0.00046489,120]
[408814365,1774288255744,-523.04,0.00046489,120]
[408814366,1774288255753,-523.04,0.00046489,120]
[408814367,1774288255762,-523.04,0.00046489,120]
[408814368,1774288255771,-523.04,0.00046489,120]
[408814369,1774288255780,-523.04,0.00046489,120]
[408814370,1774288255790,-523.04,0.00046489,120]
[408814371,1774288255799,-523.04,0.00046489,120]
[408814372,1774288255807,-523.04,0.00046489,120]
[408814373,1774288255817,-523.04,0.00046489,120]
[408814374,1774288255826,-523.04,0.00046489,120]
[408814375,1774288255835,-523.04,0.00046489,120]
[408814376,1774288255844,-523.04309069,0.00046489,120]
[408814377,1774288255853,-536.59,0.00046489,120]
[408814378,1774288255862,-536.59,0.00046489,120]
[408814379,1774288255871,-536.59,0.00046489,120]
[408814380,1774288255881,-536.59,0.00046489,120]
[408814381,1774288255890,-536.59,0.00046489,120]
[408814382,1774288255899,-536.59,0.00046489,120]
[408814383,1774288255907,-536.59,0.00046489,120]
[408814384,1774288255917,-536.59,0.00046489,120]
[408814385,1774288255926,-536.59,0.00046489,120]
[408814386,1774288255936,-536.59,0.00046489,120]
[408814387,1774288255945,-536.59,0.00046489,120]
[408814388,1774288255954,-536.59,0.00046489,120]
[408814389,1774288255963,-536.59,0.00046489,120]
[408814390,1774288255972,-536.59,0.00046489,120]
[408814391,1774288255983,-536.59,0.00046489,120]
[408814392,1774288255994,-536.59,0.00046489,120]
[408814393,1774288256003,-536.59,0.00046489,120]
[408814394,1774288256012,-536.61226675,0.00046489,120]
[408814395,1774288256022,-507.3648691,0.00046489,45]
[408814396,1774288256031,-500.0,0.00046489,120]
[408814397,1774288256040,-514.67444473,0.00046489,120]
[408814398,1774288256050,-862.94,0.00046489,120]
[408814399,1774288256060,-862.94,0.00046489,120]
[408814400,1774288256069,-862.94,0.00046489,120]
[408814401,1774288256079,-862.94,0.00046489,120]
[408814402,1774288256088,-862.94,0.00046489,120]
[408814403,1774288256098,-862.94,0.00046489,120]
[408814404,1774288256107,-862.94,0.00046489,120]
[408814405,1774288256120,-862.94,0.00046489,120]
[408814406,1774288256138,-862.94,0.00046489,120]
[408814407,1774288256148,-862.94,0.00046489,120]
[408814408,1774288256158,-862.94,0.00046489,120]
[408814409,1774288256167,-862.94,0.00046489,120]
[408814410,1774288256176,-862.94,0.00046489,120]
[408814411,1774288256186,-862.94,0.00046489,120]
[408814412,1774288256195,-862.98745051,0.00046489,120]
[408814413,1774288256205,-500.0,0.00046489,120]
[408814414,1774288256214,-527.89052605,0.00046489,120]
[408814415,1774288256223,-151.0,0.0004649,120]
[408814416,1774288256233,-151.0,0.0004649,120]
[408814417,1774288256242,-151.0,0.0004649,14]
[408814418,1774288256251,-151.0,0.0004649,30]
[408814419,1774288256260,-151.0,0.0004649,120]
[408814420,1774288256269,-151.0,0.0004649,120]
[408814421,1774288256279,-151.0,0.0004649,120]
[408814422,1774288256287,-206.441474,0.0004649,60]
[408814423,1774288256296,-151.0,0.0004649,120]
[408814424,1774288256305,-153.03397,0.0004649,30]
[408814425,1774288256314,-287.128117,0.0004649,120]
[408814426,1774288256323,-287.128117,0.0004649,120]
[408814427,1774288256332,-287.128117,0.0004649,120]
[408814428,1774288256341,-287.128117,0.0004649,120]
[408814429,1774288256350,-163.191882,0.0004649,120]
[408814430,1774288256360,-298.748897,0.0004649,120]
[408814431,1774288256369,-151.0,0.0004649,120]
[408814432,1774288256378,-154.733021,0.0004649,120]
[408814433,1774288256387,-151.0,0.0004649,120]
[408814434,1774288256397,-176.803564,0.0004649,120]
[408814435,1774288256406,-176.803564,0.0004649,120]
[408814436,1774288256416,-176.803564,0.0004649,120]
[408814437,1774288256426,-176.803564,0.0004649,120]
[408814438,1774288256436,-191.548665,0.0004649,120]
[408814439,1774288256446,-151.0,0.0004649,120]
[408814440,1774288256455,-151.0,0.0004649,31]
[408814441,1774288256465,-151.0,0.0004649,31]
[408814442,1774288256475,-151.0,0.0004649,31]
[408814443,1774288256485,-151.0,0.0004649,120]
[408814444,1774288256495,-151.0,0.0004649,120]
[408814445,1774288256504,-151.0,0.0004649,120]
[408814446,1774288256514,-276.362622,0.0004649,120]
[408814447,1774288256523,-500.274331,0.0004649,7]
[408814448,1774288256533,-500.274331,0.0004649,7]
[408814449,1774288256543,-500.274331,0.0004649,7]
[408814450,1774288256555,-500.274331,0.0004649,7]
[408814451,1774288256566,-356.336308,0.0004649,120]
[408814452,1774288256575,-356.336308,0.0004649,120]
[408814453,1774288256584,-356.336308,0.0004649,120]
[408814454,1774288256594,-356.336308,0.0004649,120]
[408814455,1774288256604,-1000.0,0.0004649,14]
[408814456,1774288256614,-1175.741134,0.0004649,120]
[408814457,1774288256626,-1175.741134,0.0004649,120]
[408814458,1774288256636,-1175.741134,0.0004649,120]
[408814459,1774288256646,-1175.741134,0.0004649,120]
[408814460,1774288256655,-5000.0,0.0004649,120]
[408814461,1774288256664,-5000.0,0.0004649,120]
[408814462,1774288256673,-5000.0,0.0004649,120]
[408814463,1774288256684,-5000.0,0.0004649,120]
[408814464,1774288256694,-5000.0,0.0004649,120]
[408814465,1774288256703,-5000.0,0.0004649,120]
[408814466,1774288256715,-393.454273,0.0004649,120]
[408814467,1774288256729,-1940646.34455149,0.0004649,8]
[408814468,1774288257836,-1316.30482803,0.0004649,8]
[408814469,1774288257952,-824.0,0.00012232,2]
[408814470,1774288258075,-659.01483788,0.00011773,2]
[408814471,1774288258085,-1393.47939216,0.00011887,2]
[408814472,1774288258094,-2073.12990641,0.00012232,2]
[408814473,1774288258106,-1037.32092717,0.00012232,2]
[408814474,1774288258116,-36035.14752852,0.00012232,2]
[408814475,1774288258129,-4714.04388952,0.00012232,2]
[408814476,1774288258140,-881.45672485,0.00012232,2]
[408814477,1774288258150,-445.5,0.00012232,2]
[408814478,1774288258161,-38.46086525,0.00012232,2]
[408814479,1774288258171,-386.39313475,0.00037,10]
[408814480,1774288258182,-335.819307,0.00037,10]
[408814481,1774288259871,-256.95422492,0.00037,10]
[408814482,1774288259881,-205.606721,0.00045205,120]
[408814483,1774288259890,-473.786338,0.00045205,120]
[408814484,1774288259900,-205.606721,0.00045205,120]
[408814485,1774288259910,-473.786338,0.00045205,120]
[408814486,1774288259920,-473.786338,0.00045205,120]
[408814487,1774288259929,-992.400484,0.00045205,120]
[408814488,1774288259938,-473.786338,0.00045205,120]
[408814489,1774288259949,-992.400484,0.00045205,120]
[408814490,1774288259958,-473.786338,0.00045205,120]
[408814491,1774288259968,-992.400484,0.00045205,120]
[408814492,1774288259976,-473.786338,0.00045205,120]
[408814493,1774288259986,-992.400484,0.00045205,120]
[408814494,1774288259995,-473.786338,0.00045205,120]
[408814495,1774288260004,-992.400484,0.00045205,120]
[408814496,1774288260013,-42.09213501,0.0004649,8]
[408814497,1774288260026,-793.1136,0.0004649,8]
[408814498,1774288260038,-2112.0,0.0004649,8]
[408814499,1774288260144,-171564.10353006,0.0004649,8]
[408814500,1774288260160,-703385.64755104,0.0004649,8]
[408814501,1774288260188,-1347.202322,0.00045205,120]
[408814502,1774288260198,-354.31773861,0.0004649,120]
[408814503,1774288260208,-50808.81252519,0.0004649,8]
[408814505,1774289038095,410.26896785,0.00011343,14]
[408814506,1774289098550,204.26249264,0.0001123,14]
[408814507,1774289341832,-297.17735696,0.00011286,2]
[408814516,1774289431490,-193.65640995,0.000114,2]
[408814520,1774289431502,-289.78083637,0.000114,2]
[408814521,1774289431511,-280.60294452,0.000114,2]
[408814523,1774289431520,-265.11597331,0.000114,2]
[408814525,1774289431530,-2500.0,0.00011413,2]
[408814527,1774289431539,-1151.0,0.00011445,2]
[408814529,1774289431549,-2500.0,0.00011446,2]
[408814531,1774289431558,-1852.42,0.00011457,2]
[408814532,1774289431567,-300.0,0.00011467,2]
[408814533,1774289431576,-188.621,0.00011469,2]
[408814534,1774289431585,-1420.547,0.00011469,2]
[408814535,1774289431595,-13629.74467248,0.00011487,2]
[408814536,1774289431606,-6927.64025712,0.00011487,2]
[408814537,1774289431617,-12286.34847427,0.00011487,2]
[408814538,1774289431643,-4801.07725008,0.00011487,2]
[408814539,1774289431691,-9445.01097609,0.00011487,2]
[408814540,1774289431708,-3020.59489546,0.00011487,2]
[408814542,1774289431725,-970.44892758,0.00011487,2]
[408814543,1774289431768,-900.0,0.00011487,2]
[408814546,1774289437867,-434.84698724,0.00011487,2]
[408814547,1774289437881,-2606.14454727,0.00011487,2]
[408814549,1774289437892,-3841.7203,0.00011487,2]
[408814551,1774289437912,-457.44547683,0.00011487,2]
[408814553,1774289437935,-2000.0,0.00011499,2]
[408814555,1774289437949,-13210.0,0.00011562,2]
[408814557,1774289437960,-150.0,0.00011572,2]
[408814559,1774289437969,-500.0,0.00011573,2]
[408814561,1774289437979,-500.0,0.00011573,2]
[408814563,1774289438013,-500.0,0.00011573,2]
[408814565,1774289438022,-500.0,0.00011573,2]
[408814567,1774289438031,-504.1137546,0.00011573,2]
[408814569,1774289438041,-500.0,0.00011573,2]
[408814571,1774289438050,-502.08297344,0.00011573,2]
[408814573,1774289438060,-1010.03678902,0.00011586,3]
[408814575,1774289438069,-500.0,0.00011586,2]
[408814577,1774289438078,-319.04080895,0.00011586,2]
[408814579,1774289438087,-500.0,0.00011586,2]
[408814581,1774289438097,-500.0,0.00011586,2]
[408814583,1774289438106,-500.0,0.00011586,2]
[408814585,1774289438115,-500.0,0.00011586,2]
[408814587,1774289438124,-500.0,0.00011586,2]
[408814589,1774289438133,-519.02904098,0.00011586,2]
[408814591,1774289438143,-500.0,0.00011586,2]
[408814593,1774289438152,-500.0,0.00011586,2]
[408814595,1774289438162,-172.1888352,0.00011586,2]
[408814597,1774289438170,-500.0,0.00011586,2]
[408814599,1774289438179,-189.46000439,0.00011586,2]
[408814600,1774289438189,-500.0,0.00011586,2]
[408814601,1774289438198,-588.60526749,0.00011586,2]
[408814602,1774289438212,-235.00983279,0.00011586,2]
[408814603,1774289438222,-500.0,0.00011586,2]
[408814604,1774289438233,-150.0,0.00011586,2]
[408814605,1774289438246,-183.65817385,0.00011586,2]
[408814606,1774289438255,-500.0,0.00011586,2]
[408814607,1774289438266,-500.0,0.00011586,2]
[408814608,1774289438276,-500.0,0.00011586,2]
[408814609,1774289438286,-500.0,0.00011586,2]
[408814610,1774289438295,-500.0,0.00011586,2]
[408814611,1774289438305,-206.26810019,0.00011586,2]
[408814612,1774289438315,-597.02460084,0.00011586,2]
[408814613,1774289438324,-597.02460084,0.00011586,2]
[408814614,1774289438334,-597.02460084,0.00011586,2]
[408814615,1774289438343,-597.02460084,0.00011586,2]
[408814616,1774289438353,-597.02460084,0.00011586,2]
[408814617,1774289438362,-597.02460084,0.00011586,2]
[408814618,1774289438372,-597.02460084,0.00011586,2]
[408814619,1774289438381,-597.02460084,0.00011586,2]
[408814620,1774289438391,-597.02460084,0.00011586,2]
[408814621,1774289438402,-597.02460084,0.00011586,2]
[408814622,1774289438411,-597.02460084,0.00011586,2]
[408814623,1774289438421,-597.02460084,0.00011586,2]
[408814624,1774289438432,-597.02460084,0.00011586,2]
[408814625,1774289438441,-597.02460084,0.00011586,2]
[408814626,1774289438452,-597.02460084,0.00011586,2]
[408814627,1774289438462,-597.02460084,0.00011586,2]
[408814628,1774289438472,-597.02460084,0.00011586,2]
[408814629,1774289438481,-597.02460084,0.00011586,2]
[408814630,1774289438494,-597.02460084,0.00011586,2]
[408814631,1774289438503,-597.02460084,0.00011586,2]
[408814632,1774289438513,-597.02460084,0.00011586,2]
[408814633,1774289438523,-597.02460084,0.00011586,2]
[408814634,1774289438532,-597.02460084,0.00011586,2]
[408814635,1774289438542,-597.02460084,0.00011586,2]
[408814636,1774289438551,-597.02460084,0.00011586,2]
[408814637,1774289438565,-597.02460084,0.00011586,2]
[408814638,1774289438575,-597.02460084,0.00011586,2]
[408814639,1774289438585,-597.02460084,0.00011586,2]
[408814640,1774289438594,-413.20532122,0.00011586,2]
[408814641,1774289438637,-183.81927962,0.00011586,2]
[408814642,1774289438647,-597.02460084,0.00011586,2]
[408814643,1774289438656,-597.02460084,0.00011586,2]
[408814644,1774289438666,-597.02460084,0.00011586,2]
[408814645,1774289438675,-260.12112479,0.00011586,2]
[408814646,1774289438687,-336.90347605,0.00011586,2]
[408814647,1774289438696,-597.02460084,0.00011586,2]
[408814648,1774289438707,-597.02460084,0.00011586,2]
[408814649,1774289438716,-597.02460084,0.00011586,2]
[408814650,1774289438726,-597.02460084,0.00011586,2]
[408814651,1774289438736,-597.02460084,0.00011586,2]
[408814652,1774289438745,-597.02460084,0.00011586,2]
[408814653,1774289438755,-597.02460084,0.00011586,2]
[408814654,1774289438765,-597.02460084,0.00011586,2]
[408814655,1774289438774,-597.02460084,0.00011586,2]
[408814656,1774289438784,-597.02460084,0.00011586,2]
[408814657,1774289438793,-597.02460084,0.00011586,2]
[408814658,1774289438803,-597.02460084,0.00011586,2]
[408814659,1774289438812,-597.02460084,0.00011586,2]
[408814660,1774289438822,-597.02460084,0.00011586,2]
[408814661,1774289438832,-597.02460084,0.00011586,2]
[408814662,1774289438841,-597.02460084,0.00011586,2]
[408814663,1774289438851,-597.02460084,0.00011586,2]
[408814664,1774289438860,-597.02460084,0.00011586,2]
[408814665,1774289438870,-597.02460084,0.00011586,2]
[408814666,1774289438880,-597.02460084,0.00011586,2]
[408814667,1774289438889,-597.02460084,0.00011586,2]
[408814668,1774289438901,-597.02460084,0.00011586,2]
[408814669,1774289438912,-597.02460084,0.00011586,2]
[408814670,1774289438926,-597.02460084,0.00011586,2]
[408814671,1774289438936,-597.02460084,0.00011586,2]
[408814672,1774289438948,-579.0892939,0.00011586,2]
[408814673,1774289438957,-152.00962096,0.00011586,2]
[408814674,1774289438967,-579.0892939,0.00011586,2]
[408814675,1774289438977,-579.0892939,0.00011586,2]
[408814676,1774289438988,-579.0892939,0.00011586,2]
[408814677,1774289438998,-579.0892939,0.00011586,2]
[408814678,1774289439007,-579.0892939,0.00011586,2]
[408814679,1774289439016,-579.0892939,0.00011586,2]
[408814680,1774289439026,-579.0892939,0.00011586,2]
[408814681,1774289439036,-579.0892939,0.00011586,2]
[408814682,1774289439046,-579.0892939,0.00011586,2]
[408814683,1774289439056,-579.0892939,0.00011586,2]
[408814684,1774289439066,-579.0892939,0.00011586,2]
[408814685,1774289439076,-579.0892939,0.00011586,2]
[408814686,1774289439086,-579.0892939,0.00011586,2]
[408814687,1774289439095,-579.0892939,0.00011586,2]
[408814688,1774289439105,-579.0892939,0.00011586,2]
[408814689,1774289439114,-579.0892939,0.00011586,2]
[408814690,1774289439124,-579.0892939,0.00011586,2]
[408814691,1774289439133,-579.0892939,0.00011586,2]
[408814692,1774289439142,-579.0892939,0.00011586,2]
[408814693,1774289439151,-579.0892939,0.00011586,2]
[408814694,1774289439161,-579.0892939,0.00011586,2]
[408814695,1774289439170,-579.0892939,0.00011586,2]
[408814696,1774289439179,-579.0892939,0.00011586,2]
[408814697,1774289439188,-579.0892939,0.00011586,2]
[408814698,1774289439198,-579.0892939,0.00011586,2]
[408814699,1774289439207,-579.0892939,0.00011586,2]
[408814700,1774289439216,-20757.64932921,0.00011587,2]
[408814701,1774289439229,-2301935.07594451,0.00011587,2]
[408814702,1774289439241,-301.76454383,0.00011587,2]
[408814703,1774289439252,-3487.1,0.00011587,2]
[408814704,1774289439263,-610.84628474,0.00011587,2]
[408814708,1774289439914,-2087.35561169,0.00011587,2]
[408814709,1774289439925,-1220.35985335,0.00011587,2]
[408814710,1774289440130,-1162.5,0.00011587,2]
[408814711,1774289440184,-460.0,0.00011587,2]
[408814712,1774289440196,-96220.96943267,0.00011587,2]
[408814713,1774289440206,-28646.3717,0.00011587,2]
[408814714,1774289440215,-189.44762194,0.00012094,2]
[408814715,1774289440225,-250.0,0.00012415,2]
[408814716,1774289440235,-172.42,0.00012452,2]
[408814717,1774289440244,-2500.0,0.0001254,2]
[408814718,1774289440253,-2500.0,0.0001254,2]
[408814719,1774289440262,-2500.0,0.0001254,2]
[408814720,1774289440275,-22421.11,0.00012548,2]
[408814721,1774289440285,-255.0,0.00012636,2]
[408814722,1774289440295,-1312.53,0.00012654,2]
[408814723,1774289440306,-152.25,0.00012773,2]
[408814724,1774289440316,-2000.0,0.00012936,2]
[408814725,1774289440326,-1500.0,0.00012992,2]
[408814726,1774289440337,-250.0,0.00013,2]
[408814727,1774289440346,-419.64,0.00013139,2]
[408814728,1774289440356,-3240.0,0.00013425,2]
[408814729,1774289440365,-152.25,0.00013685,2]
[408814730,1774289440374,-529.42180418,0.00013698,2]
[408814731,1774289440383,-500.0,0.00013698,2]
[408814732,1774289440393,-623.17225997,0.00013698,2]
[408814733,1774289440402,-500.0,0.00013698,2]
[408814734,1774289440411,-500.0,0.00013698,2]
[408814735,1774289440421,-464.09,0.00013698,2]
[408814736,1774289440430,-500.0,0.00013698,2]
[408814737,1774289440440,-500.0,0.00013698,2]
[408814738,1774289440449,-500.0,0.00013698,2]
[408814739,1774289440459,-500.0,0.00013698,2]
[408814740,1774289440470,-528.17,0.00013698,2]
[408814741,1774289440479,-500.0,0.00013698,2]
[408814742,1774289440489,-500.0,0.00013698,2]
[408814743,1774289440498,-500.0,0.00013698,2]
[408814744,1774289440509,-252.23,0.00013698,2]
[408814745,1774289440519,-715.98,0.00013699,2]
[408814746,1774289440528,-500.0,0.00013699,2]
[408814747,1774289440539,-500.0,0.00013699,2]
[408814748,1774289440548,-312.87,0.000137,2]
[408814749,1774289440558,-162.43,0.000137,2]
[408814750,1774289440568,-318.41,0.000137,2]
[408814751,1774289440577,-433.0,0.00013793,2]
[408814752,1774289440586,-511.0,0.00014,2]
[408814753,1774289440596,-1312.53,0.00014235,2]
[408814754,1774289440605,-2000.0,0.00014373,2]
[408814755,1774289440614,-3246.48225916,0.00014424,2]
[408814756,1774289440623,-200.0,0.00014442,2]
[408814757,1774289440632,-65309.61,0.00014504,2]
[408814758,1774289440642,-9999.99,0.00014504,2]
[408814759,1774289440651,-499.99,0.00014504,2]
[408814760,1774289440661,-1479.14,0.00014504,2]
[408814761,1774289440671,-9999.99,0.00014504,2]
[408814762,1774289440681,-152.25,0.00014597,2]
[408814763,1774289440691,-300.0,0.00015,2]
[408814764,1774289440702,-433.0,0.00015066,2]
[408814765,1774289440712,-979.16666667,0.00015094,2]
[408814766,1774289440722,-245.22375764,0.00015265,2]
[408814767,1774289440734,-47089.82163,0.00015365,2]
[408814768,1774289440744,-7932.03535754,0.00015365,2]
[408814769,1774289440753,-250.0,0.00015439,2]
[408814770,1774289440763,-181.68643491,0.00015445,2]
[408814771,1774289440772,-326.70854726,0.00015445,2]
[408814772,1774289440782,-987.41,0.00015507,2]
[408814773,1774289440791,-152.25,0.0001551,2]
[408814774,1774289440800,-2000.0,0.00015811,2]
[408814775,1774289440810,-1312.53,0.00015817,2]
[408814776,1774289440819,-987.41,0.00015895,2]
[408814777,1774289440829,-168.0,0.00015915,2]
[408814778,1774289440838,-600.0,0.0001597,2]
[408814779,1774289440848,-987.41,0.00016282,2]
[408814780,1774289440857,-152.25,0.00016422,2]
[408814781,1774289440867,-987.41,0.0001667,2]
[408814782,1774289440876,-11077.65,0.00016922,2]
[408814783,1774289440886,-350.0,0.00017,2]
[408814784,1774289440896,-987.41,0.00017058,2]
[408814785,1774289440909,-2000.0,0.00017248,2]
[408814786,1774289440919,-152.25,0.00017334,2]
[408814787,1774289440929,-1312.53,0.00017399,2]
[408814788,1774289440938,-172.42,0.00017432,2]
[408814789,1774289440948,-659.01483783,0.00017544,2]
[408814790,1774289440957,-312.87,0.000176,2]
[408814791,1774289440966,-511.0,0.00017667,5]
[408814792,1774289440978,-515.0,0.00017821,2]
[408814793,1774289440987,-660.0,0.00017821,2]
[408814794,1774289440996,-318.41,0.000179,2]
[408814795,1774289441007,-152.25,0.00018247,2]
[408814796,1774289441016,-928.98626144,0.000189,2]
[408814797,1774289441025,-1312.53,0.0001898,2]
[408814798,1774289441034,-1539.716,0.00019,2]
[408814799,1774289441043,-453.0,0.00019,2]
[408814800,1774289441053,-152.25,0.00019159,2]
[408814801,1774289441062,-150.0,0.00019178,2]
[408814802,1774289441072,-160.21004736,0.00019178,2]
[408814803,1774289441083,-47089.82163,0.00019243,2]
[408814804,1774289441093,-7932.03535754,0.00019243,2]
[408814805,1774289441103,-150.0,0.00019726,2]
[408814806,1774289441112,-14473.53,0.0002,2]
[408814807,1774289441122,-200.0,0.0002,10]
[408814808,1774289441135,-300.0,0.000201,10]
[408814809,1774289441146,-295.99296744,0.0002014,45]
[408814810,1774289441156,-150.07533915,0.00020274,2]
[408814811,1774289441166,-511.0,0.00021333,8]
[408814812,1774289441177,-177.7,0.00021674,2]
[408814813,1774289441187,-2466.0,0.00022545,2]
[408814814,1774289441197,-886.762,0.00022545,2]
[408814815,1774289441208,-924.0,0.00022613,2]
[408814816,1774289441219,-47089.82163,0.00023121,2]
[408814817,1774289441230,-7932.03535754,0.00023121,2]
[408814818,1774289441239,-659.01483783,0.00023315,2]
[408814819,1774289441249,-196.8715,0.00024094,7]
[408814820,1774289441258,-196.8715,0.00024109,7]
[408814821,1774289441267,-2000.0,0.000244,2]
[408814822,1774289441279,-199.481,0.00024574,2]
[408814823,1774289441289,-199.481,0.00024591,2]
[408814824,1774289441299,-150.0,0.00024658,2]
[408814825,1774289441309,-318.41,0.000247,7]
[408814826,1774289441318,-162.42,0.00025,7]
[408814827,1774289441328,-312.87,0.00025,7]
[408814828,1774289441337,-511.0,0.00025,11]
[408814829,1774289441347,-924.0,0.00025613,2]
[408814830,1774289441356,-150.0,0.0002589,2]
[408814831,1774289441366,-14473.53,0.000259,7]
[408814832,1774289441375,-979.16666667,0.000259,7]
[408814833,1774289441384,-800.0,0.00026986,120]
[408814834,1774289441394,-47089.82163,0.00026999,2]
[408814835,1774289441403,-7932.03535754,0.00026999,2]
[408814836,1774289441413,-150.0,0.00027185,2]
[408814837,1774289441422,-300.0,0.00027397,2]
[408814838,1774289441431,-19772.63,0.00027397,10]
[408814839,1774289441441,-16477.19,0.00027397,10]
[408814840,1774289441450,-979.16666667,0.000274,10]
[408814841,1774289441459,-2000.0,0.000281,2]
[408814842,1774289441469,-924.0,0.00028613,2]
[408814843,1774289441478,-511.0,0.00028667,14]
[408814844,1774289441507,-311.46966124,0.0002878,74]
[408814845,1774289441516,-659.01483783,0.00029087,2]
[408814846,1774289441526,-318.41,0.000291,7]
[408814847,1774289441536,-318.4,0.000305,7]
[408814848,1774289441546,-14473.53,0.000305,7]
[408814849,1774289441555,-47089.82163,0.00030878,2]
[408814850,1774289441564,-7932.03535754,0.00030878,2]
[408814851,1774289441573,-319.0,0.00031222,5]
[408814852,1774289441583,-260.0,0.00031222,5]
[408814853,1774289441592,-312.87,0.000314,30]
[408814854,1774289441602,-924.0,0.00031613,2]
[408814855,1774289441611,-2000.0,0.000318,2]
[408814856,1774289441620,-511.0,0.00032333,18]
[408814857,1774289441629,-318.4,0.000326,7]
[408814858,1774289441639,-500.0,0.00032603,2]
[408814859,1774289441648,-500.0,0.00032603,2]
[408814860,1774289441658,-500.0,0.00032603,2]
[408814861,1774289441668,-500.0,0.00032603,2]
[408814862,1774289441677,-500.0,0.00032603,2]
[408814863,1774289441686,-500.0,0.00032603,2]
[408814864,1774289441696,-500.0,0.00032603,2]
[408814865,1774289441705,-500.0,0.00032603,2]
[408814866,1774289441715,-500.0,0.00032603,2]
[408814867,1774289441724,-500.0,0.00032603,2]
[408814868,1774289441734,-500.0,0.00032603,2]
[408814869,1774289441745,-500.0,0.00032603,2]
[408814870,1774289441755,-500.0,0.00032603,2]
[408814871,1774289441765,-484.98041623,0.00032603,2]
[408814872,1774289441775,-928.98626142,0.0003265,2]
[408814873,1774289441784,-924.0,0.00034613,2]
[408814874,1774289441794,-232.91161484,0.00034616,90]
[408814875,1774289441813,-47089.82163,0.00034756,2]
[408814876,1774289441824,-7932.03535754,0.00034756,2]
[408814877,1774289441833,-659.01483783,0.00034858,2]
[408814878,1774289441843,-14473.53,0.000353,7]
[408814879,1774289441853,-2000.0,0.000355,2]
[408814880,1774289441862,-511.0,0.00036,21]
[408814881,1774289441872,-1420.548,0.00036102,44]
[408814882,1774289441882,-312.87,0.000365,30]
[408814883,1774289441892,-374.6086263,0.00037421,104]
[408814884,1774289441905,-500.0,0.00039,60]
[408814885,1774289441914,-2000.0,0.000392,2]
[408814886,1774289441924,-511.0,0.00039667,24]
[408814887,1774289441933,-512.30879652,0.0004,61]
[408814888,1774289441943,-659.01483783,0.00040629,2]
[408814889,1774289441952,-417.0,0.0004095,60]
[408814890,1774289441962,-6539.40109199,0.00042,120]
[408814891,1774289441972,-500.0,0.00042,120]
[408814892,1774289441983,-14473.53,0.000422,7]
[408814893,1774289441994,-417.0,0.000423,60]
[408814894,1774289442004,-152.0,0.00042377,2]
[408814895,1774289442014,-1990.0,0.00042465,120]
[408814896,1774289442023,-500.0,0.000425,120]
[408814897,1774289442033,-1990.0,0.00042739,120]
[408814898,1774289442042,-2000.0,0.000429,2]
[408814899,1774289442051,-685.98993686,0.00042986,7]
[408814900,1774289442062,-312.87,0.00043,30]
[408814901,1774289442072,-979.16666667,0.00043,120]
[408814902,1774289442082,-160.0,0.00043,120]
[408814903,1774289442092,-98621.84593803,0.00043,120]
[408814904,1774289442102,-979.16666667,0.00043,7]
[408814905,1774289442111,-500.0,0.00043,120]
[408814906,1774289442122,-1990.0,0.00043013,120]
[408814907,1774289442131,-1990.0,0.00043287,120]
[408814908,1774289442141,-152.0,0.00043318,2]